bitfinex/quotes_ETHUSD_20241215
["timestamp","ask_amount","ask_price","bid_price","bid_amount"]
[1734303545923,0.55,3890.0,3889.4,0.51948718]
[1734303546269,0.55,3890.0,3889.5,2.22776257]
[1734303546565,0.55,3890.0,3889.4,0.51948718]
[1734303546865,0.55,3890.0,3889.5,2.22777483]
[1734303547070,0.55,3890.0,3889.4,0.51948718]
[1734303547279,0.55,3890.0,3889.5,0.89110595]
[1734303547455,0.55,3890.0,3889.4,0.51948718]
[1734303547767,0.55,3890.0,3889.5,0.89112383]
[1734303547970,0.55,3890.0,3889.4,0.51948718]
[1734303548169,0.55,3890.0,3889.5,0.89112265]
[1734303548473,0.8078,3889.9,3889.4,0.51948718]
[1734303548621,0.55,3889.8,3889.5,0.89113054]
[1734303548814,0.55,3889.8,3889.4,0.51948718]
[1734303552462,0.55,3889.8,3889.5,0.89119044]
[1734303552626,0.55,3889.8,3889.4,0.51948718]
[1734303552838,0.55,3889.8,3889.5,0.89120174]
[1734303553128,0.55,3889.8,3889.4,0.51948718]
[1734303553323,0.55,3889.8,3889.5,0.89119537]
[1734303553546,0.55,3889.8,3889.2,1.81879629]
[1734303553762,0.55,3889.8,3889.3,2.22803427]
[1734303554064,0.55,3889.8,3889.4,2.22803427]
[1734303554275,0.55,3889.8,3889.5,0.89121371]
[1734303554431,0.55,3889.8,3889.2,1.07703849]
[1734303554629,0.55,3889.8,3889.3,2.2281143]
[1734303554829,0.5469052,3889.8,3889.4,2.2281143]
[1734303555136,0.5469052,3889.8,3889.5,0.89124572]
[1734303555335,0.5469052,3889.8,3889.2,1.59000004]
[1734303555566,0.5469052,3889.8,3889.3,2.22815758]
[1734303555745,0.5469052,3889.8,3889.4,2.22815758]
[1734303556052,0.5469052,3889.8,3889.5,0.89126303]
[1734303556243,0.5469052,3889.8,3889.2,2.125918]
[1734303556793,0.5469052,3889.8,3889.3,2.22820602]
[1734303556993,0.5469052,3889.8,3889.4,2.22820602]
[1734303557135,0.5469052,3889.8,3889.5,0.89128241]
[1734303557445,0.5469052,3889.8,3889.3,0.59694867]
[1734303557646,0.5469052,3889.8,3889.4,2.22828616]
[1734303557847,0.5469052,3889.8,3889.5,0.89131446]
[1734303558069,0.5469052,3889.8,3889.2,1.07703849]
[1734303558295,0.5469052,3889.8,3889.3,2.22828716]
[1734303558438,0.5469052,3889.8,3889.4,2.22828716]
[1734303558640,0.5469052,3889.8,3889.5,0.89131486]
[1734303558869,0.5469052,3889.8,3889.2,1.07703849]
[1734303559072,0.5469052,3889.8,3889.3,2.22836553]
[1734303559370,0.5469052,3889.8,3889.4,2.22836553]
[1734303559574,0.5469052,3889.8,3889.5,0.89134621]
[1734303559730,0.5469052,3889.8,3889.2,1.56166029]
[1734303559930,0.5469052,3889.8,3889.3,2.22845427]
[1734303560194,0.5469052,3889.8,3889.4,2.22845427]
[1734303560368,0.5469052,3889.8,3889.5,0.89138171]
[1734303560570,0.5469052,3889.8,3889.2,1.56166029]
[1734303560781,0.5469052,3889.8,3889.3,2.54625743]
[1734303561080,0.5469052,3889.8,3889.4,2.22855513]
[1734303561280,0.5469052,3889.8,3889.3,0.3177023]
[1734303561281,0.5469052,3889.8,3889.5,0.89142221]
[1734303561568,0.5469052,3889.8,3889.3,1.90373598]
[1734303561767,0.5469052,3889.8,3889.4,2.22869836]
[1734303561972,0.5469052,3889.8,3889.5,0.89147934]
[1734303562175,0.5469052,3889.8,3889.3,1.90373598]
[1734303562371,0.5469052,3889.8,3889.4,2.22869842]
[1734303562577,0.5469052,3889.8,3889.5,0.89147937]
[1734303562875,0.5469052,3889.8,3889.3,1.90373598]
[1734303563075,0.5469052,3889.8,3889.4,2.22880428]
[1734303563371,0.5469052,3889.8,3889.5,0.89152171]
[1734303563579,0.5469052,3889.8,3889.3,1.90373598]
[1734303563875,0.5469052,3889.8,3889.4,2.22893856]
[1734303564178,0.5469052,3889.8,3889.5,0.89157542]
[1734303564378,0.5469052,3889.8,3889.3,1.58603368]
[1734303564573,0.5469052,3889.8,3889.4,2.22906088]
[1734303564786,0.5469052,3889.8,3889.5,2.22906088]
[1734303565074,0.5469052,3889.8,3889.3,1.58603368]
[1734303565243,0.5469052,3889.8,3889.4,2.22909186]
[1734303565444,0.5469052,3889.8,3889.5,2.22909186]
[1734303565753,0.5469052,3889.8,3889.3,1.58603368]
[1734303565979,0.5469052,3889.8,3889.4,2.22925298]
[1734303566275,0.5469052,3889.8,3889.5,2.22925298]
[1734303566521,0.5469052,3889.8,3889.6,0.89170119]
[1734303566736,0.5469052,3889.8,3889.3,1.58603368]
[1734303566878,0.5469052,3889.8,3889.4,2.22951425]
[1734303567077,0.5469052,3889.8,3889.5,2.22951425]
[1734303567279,0.5469052,3889.8,3889.6,0.8918057]
[1734303567524,0.5469052,3889.8,3889.4,1.07703849]
[1734303567732,0.5469052,3889.8,3889.5,2.22980516]
[1734303567877,0.5469052,3889.8,3889.6,0.89192206]
[1734303568214,0.5469052,3889.8,3889.4,1.07703849]
[1734303568511,0.5469052,3889.8,3889.5,2.23007177]
[1734303568808,0.5469052,3889.8,3889.6,0.89202871]
[1734303569013,0.5469052,3889.8,3889.4,1.07703849]
[1734303569211,0.5469052,3889.8,3889.5,2.23008975]
[1734303569379,0.5469052,3889.8,3889.4,1.07703849]
[1734303569380,0.5469052,3889.8,3889.6,2.23008975]
[1734303569581,0.5469052,3889.8,3889.7,0.8920359]
[1734303570656,0.5469052,3889.8,3889.7,0.89230102]
[1734303575453,0.5469052,3889.8,3889.4,1.07703849]
[1734303575615,0.5469052,3889.8,3889.5,2.23082342]
[1734303575817,0.5469052,3889.8,3889.6,2.23081401]
[1734303576019,0.5469052,3889.8,3889.4,1.07703849]
[1734303576219,0.5469052,3889.8,3889.5,2.2308077]
[1734303576419,0.5469052,3889.8,3889.6,2.2308077]
[1734303576718,0.5469052,3889.8,3889.4,1.07703849]
[1734303576919,1.61693576,3889.8,3889.5,2.23078643]
[1734303577115,1.61693576,3889.8,3889.6,0.89231457]
[1734303577416,1.61693576,3889.8,3889.4,1.07703849]
[1734303577616,1.61693576,3889.8,3889.5,2.2307679]
[1734303577840,1.61693576,3889.8,3889.6,0.89230716]
[1734303578035,1.61693576,3889.8,3889.3,1.58603368]
[1734303578239,0.5469052,3889.8,3889.4,3.30781882]
[1734303578439,1.61693576,3889.8,3889.5,2.23078033]
[1734303578672,1.61693576,3889.8,3889.6,0.89231213]
[1734303578880,1.61693576,3889.8,3889.3,1.90617331]
[1734303579171,1.61693576,3889.8,3889.4,2.23074196]
[1734303579371,1.61693576,3889.8,3889.5,2.23074196]
[1734303579583,1.61693576,3889.8,3889.6,0.89229678]
[1734303579744,1.61693576,3889.8,3889.3,1.90617331]
[1734303580073,1.61693576,3889.8,3889.4,2.2307264]
[1734303580278,1.61693576,3889.8,3889.5,2.2307264]
[1734303580462,1.61693576,3889.8,3889.6,0.89229056]
[1734303580663,1.61693576,3889.8,3889.3,1.90617331]
[1734303580839,0.5469052,3889.8,3889.4,3.30774674]
[1734303581037,0.5469052,3889.8,3889.5,2.23070825]
[1734303581237,0.5469052,3889.8,3889.4,1.07703849]
[1734303581238,0.5469052,3889.8,3889.6,2.23070825]
[1734303581546,0.5469052,3889.8,3889.4,1.07703849]
[1734303581743,0.5469052,3889.8,3889.5,2.23068608]
[1734303581949,0.5469052,3889.8,3889.6,0.89227443]
[1734303582256,0.5469052,3889.8,3889.4,1.07703849]
[1734303582441,0.5469052,3889.8,3889.5,2.23075528]
[1734303582638,0.5469052,3889.8,3889.6,0.89230211]
[1734303582837,0.5469052,3889.8,3889.4,1.07703849]
[1734303583044,0.5469052,3889.8,3889.5,2.23076396]
[1734303583240,1.61693576,3889.8,3889.6,0.89230558]
[1734303583455,1.61693576,3889.8,3889.3,1.90617331]
[1734303583657,1.61693576,3889.8,3889.4,2.23081828]
[1734303583856,1.61693576,3889.8,3889.5,2.23081828]
[1734303584085,1.61693576,3889.8,3889.3,1.90617331]
[1734303584086,1.61693576,3889.8,3889.6,0.89232731]
[1734303584258,1.61693576,3889.8,3889.3,1.58603368]
[1734303584583,1.61693576,3889.8,3889.4,2.23086718]
[1734303584779,1.61693576,3889.8,3889.5,2.23086718]
[1734303584988,1.61693576,3889.8,3889.6,0.89234687]
[1734303585290,1.61693576,3889.8,3889.3,1.58603368]
[1734303585527,1.61693576,3889.8,3889.4,2.23085113]
[1734303585720,1.61693576,3889.8,3889.5,2.23085113]
[1734303585919,1.61693576,3889.8,3889.6,0.89234045]
[1734303586119,1.61693576,3889.8,3889.3,1.58603368]
[1734303586315,1.61693576,3889.8,3889.4,2.23081803]
[1734303586637,1.61693576,3889.8,3889.3,2.121555]
[1734303586638,1.61693576,3889.8,3889.5,2.23081803]
[1734303586933,1.61693576,3889.8,3889.6,0.89232721]
[1734303587228,1.61693576,3889.8,3889.3,1.61255981]
[1734303587229,1.61693576,3889.8,3889.3,1.07703849]
[1734303587458,1.61693576,3889.8,3889.4,2.2307989]
[1734303587750,1.61693576,3889.8,3889.5,2.2307989]
[1734303587959,1.61693576,3889.8,3889.6,0.89231956]
[1734303588093,1.61693576,3889.8,3889.3,1.07703849]
[1734303588295,1.61693576,3889.8,3889.0,2.15381688]
[1734303588296,3.87166,3889.5,3889.4,0.89231282]
[1734303588552,3.87166,3889.5,3888.8,2.93801688]
[1734303588553,1.3006,3889.1,3888.8,1.07703849]
[1734303588692,3.12142,3888.9,3888.8,1.07703849]
[1734303588890,0.55,3888.7,3888.6,1.07703849]
[1734303589139,0.55,3888.7,3888.6,3.30792567]
[1734303589547,0.55,3888.7,3888.6,2.23088718]
[1734303590049,3.12155,3888.7,3888.6,2.23088718]
[1734303591540,3.12155,3888.7,3888.6,0.89235487]
[1734303591744,3.12155,3888.7,3888.3,0.50573482]
[1734303591949,3.12155,3888.7,3888.4,0.89145043]
[1734303592136,3.12155,3888.7,3888.3,0.50573482]
[1734303592455,0.55,3888.5,3888.1,1.07703849]
[1734303592650,0.77952675,3888.6,3888.2,0.8911455]
[1734303592651,0.55,3888.3,3888.2,0.8911455]
[1734303592950,0.55,3888.3,3888.0,0.50954005]
[1734303593122,0.55,3888.3,3888.1,0.89115194]
[1734303593328,0.55,3888.3,3887.8,1.07703849]
[1734303593519,0.55,3888.3,3887.9,2.22796633]
[1734303593722,0.55,3888.2,3888.0,0.89118653]
[1734303594015,0.57892675,3888.5,3887.7,1.07703849]
[1734303594213,0.57892675,3888.5,3887.8,2.73390793]
[1734303594516,0.55,3888.3,3887.8,0.50681468]
[1734303594743,2.57189,3888.2,3887.8,0.50681468]
[1734303595114,0.55,3888.1,3887.8,0.50681468]
[1734303599157,3.12195,3888.1,3887.8,0.50681468]
[1734303599519,0.55,3887.9,3887.4,0.7537]
[1734303600432,0.55,3887.9,3887.8,1.07703849]
[1734303600577,3.8311,3888.8,3887.8,0.7806]
[1734303600736,1.01249553,3888.5,3887.4,1.85570557]
[1734303600934,3.0,3889.3,3887.1,2.15381688]
[1734303600935,0.8311,3888.1,3887.1,1.85570557]
[1734303601138,2.57211,3887.9,3887.2,0.88917521]
[1734303601461,2.57211,3887.9,3887.2,0.51406542]
[1734303601786,0.8311,3888.1,3886.6,3.0]
[1734303601787,0.8012,3887.6,3886.8,0.7896]
[1734303601968,2.57275,3886.9,3886.2,0.7896]
[1734303602279,0.18435955,3888.0,3885.7,0.7896]
[1734303602280,0.8012,3886.5,3885.7,0.7896]
[1734303602492,1.81369553,3886.5,3885.8,0.18647056]
[1734303602797,1.81369553,3886.5,3885.7,0.7896]
[1734303602942,0.8012,3886.5,3885.7,0.7896]
[1734303603336,0.8012,3886.5,3886.0,0.51519693]
[1734303605911,0.7554,3887.6,3886.0,0.51519693]
[1734303606122,0.7554,3887.6,3886.1,0.7906]
[1734303606343,1.01249553,3887.4,3886.1,0.7906]
[1734303606544,0.7829,3886.7,3886.1,0.7906]
[1734303606747,0.7829,3886.7,3886.0,0.51519693]
[1734303606748,3.35581,3886.7,3886.0,0.51519693]
[1734303606886,0.7829,3886.7,3886.0,0.64809662]
[1734303607281,0.7829,3886.7,3885.7,0.8138]
[1734303607481,0.55,3886.6,3885.8,0.51350655]
[1734303607899,0.55,3886.6,3885.7,0.8138]
[1734303607900,0.7829,3887.6,3885.7,2.57352]
[1734303608256,0.7829,3888.5,3887.0,0.8138]
[1734303608444,0.7829,3888.5,3887.4,2.57239]
[1734303608586,0.7829,3888.5,3887.5,0.8138]
[1734303608956,4.36684553,3888.9,3887.5,0.8138]
[1734303609248,2.57104,3889.5,3887.9,2.57203]
[1734303609452,0.7829,3889.8,3888.4,0.51890918]
[1734303609583,0.7829,3889.8,3889.0,2.57131]
[1734303609779,0.7829,3890.4,3889.0,0.257131]
[1734303610019,0.7829,3890.4,3888.6,1.01249553]
[1734303610222,0.7829,3890.4,3889.2,2.57119]
[1734303610432,2.57062,3890.2,3888.5,0.8138]
[1734303610639,0.38060285,3890.7,3889.6,1.01249553]
[1734303610640,0.7953,3890.1,3889.6,1.01249553]
[1734303610937,0.7953,3890.1,3888.5,0.8138]
[1734303610938,0.7953,3890.1,3889.9,1.01249553]
[1734303611086,3.36568,3890.5,3889.9,1.01249553]
[1734303611286,0.27009829,3890.4,3889.8,1.01249553]
[1734303612125,0.27009829,3890.4,3889.6,2.1499542]
[1734303612604,0.12667012,3890.9,3890.0,2.1499542]
[1734303612605,0.8015,3890.9,3890.0,2.1499542]
[1734303613512,0.8195,3891.4,3890.0,4.7205942]
[1734303613818,2.56999,3891.1,3890.0,2.1499542]
[1734303614255,0.8195,3891.4,3890.0,2.1499542]
[1734303614457,3.38928,3891.4,3890.0,2.1499542]
[1734303614666,0.338928,3891.3,3890.4,2.1499542]
[1734303614868,0.8195,3891.4,3890.4,2.1499542]
[1734303615161,0.8195,3891.4,3889.9,3.09366554]
[1734303616170,0.55,3891.3,3889.9,3.09366554]
[1734303616865,3.11985,3891.3,3889.9,3.09366554]
[1734303617067,0.393935,3891.2,3889.9,3.61802751]
[1734303617521,0.393935,3891.2,3890.0,0.7635]
[1734303618890,0.7769,3891.0,3889.6,0.7762]
[1734303619026,0.7769,3891.0,3889.5,0.52525553]
[1734303619027,2.57051,3890.3,3889.5,0.52525553]
[1734303619374,2.57051,3890.3,3889.2,0.7605]
[1734303619721,3.0,3890.9,3889.2,0.7605]
[1734303619926,2.57038,3890.5,3889.5,2.1499542]
[1734303620183,0.55,3890.8,3889.3,0.5041857]
[1734303620328,3.55,3890.8,3889.3,0.5041857]
[1734303620527,0.7769,3891.0,3889.3,0.5041857]
[1734303620790,3.0,3891.1,3889.7,2.57088]
[1734303621074,3.0,3891.1,3888.9,1.07510557]
[1734303621075,0.7606,3891.4,3890.1,0.52479302]
[1734303621952,0.7606,3891.4,3889.8,0.816]
[1734303622151,3.33042,3891.4,3889.8,0.816]
[1734303622452,2.57044,3890.4,3889.8,0.816]
[1734303623099,3.0,3891.2,3889.3,0.7815]
[1734303623255,2.57029,3890.7,3889.3,0.99649542]
[1734303623439,3.55,3891.1,3889.3,0.99649542]
[1734303623639,2.57016,3890.8,3889.4,0.31464496]
[1734303623869,2.57039,3890.5,3889.4,0.31464496]
[1734303624172,2.57045,3890.4,3889.4,0.31464496]
[1734303624470,2.57045,3890.4,3889.5,0.32460992]
[1734303624768,2.57045,3890.4,3889.9,0.51086861]
[1734303625478,2.57017,3890.8,3890.0,0.8031]
[1734303625652,2.57017,3890.8,3890.0,1.14949228]
[1734303625839,0.55,3891.3,3890.0,1.14949228]
[1734303626037,2.57008,3891.0,3890.0,1.14949228]
[1734303626644,0.55,3891.3,3890.0,1.14949228]
[1734303626844,2.57019,3890.8,3890.0,1.14949228]
[1734303627047,2.57024,3890.7,3890.0,0.8031]
[1734303628063,3.0,3891.1,3890.0,0.8031]
[1734303628279,2.57007,3891.0,3890.0,0.8031]
[1734303629679,3.0,3890.9,3890.0,0.8031]
[1734303629877,3.0,3890.9,3890.1,0.13139686]
[1734303632466,3.0,3891.2,3890.1,0.13139686]
[1734303632645,3.0,3891.2,3890.2,0.02570201]
[1734303632842,3.0,3891.1,3890.2,0.02570201]
[1734303633068,3.0,3891.1,3890.2,0.42988376]
[1734303633269,2.5699,3891.2,3890.2,0.42988376]
[1734303633270,2.57004,3891.0,3890.2,0.40418175]
[1734303633442,3.0,3890.9,3890.1,0.13139686]
[1734303633646,2.5701,3890.9,3890.1,0.13139686]
[1734303633845,3.0,3890.8,3890.1,0.13139686]
[1734303635168,2.5701,3890.9,3890.1,0.13139686]
[1734303635358,2.5701,3890.9,3890.2,0.14453655]
[1734303636383,2.56993,3891.2,3890.3,0.8245]
[1734303636883,2.56996,3891.1,3890.3,0.8245]
[1734303640548,0.7655,3891.3,3890.3,0.8245]
[1734303640742,2.57003,3891.0,3890.3,0.8245]
[1734303641347,2.57019,3890.8,3890.3,0.8245]
[1734303643490,2.57019,3890.8,3890.4,2.1499542]
[1734303643694,0.55,3891.2,3890.4,2.1499542]
[1734303643877,2.5699,3891.2,3890.4,2.1499542]
[1734303644285,2.57024,3890.7,3890.4,2.1499542]
[1734303645321,2.57024,3890.7,3890.3,0.8245]
[1734303645681,2.57024,3890.7,3889.9,0.51086861]
[1734303645682,2.57052,3890.3,3889.9,0.51086861]
[1734303645884,0.55,3890.8,3889.7,2.1499542]
[1734303646186,0.8271,3890.9,3889.7,2.1499542]
[1734303646187,2.5706,3890.2,3889.7,2.1499542]
[1734303647087,2.5706,3890.2,3889.6,0.7698]
[1734303649031,2.57069,3890.0,3889.6,0.7698]
[1734303650548,2.57055,3890.3,3889.6,0.7698]
[1734303650747,2.57056,3890.2,3889.6,0.7698]
[1734303655249,2.57056,3890.2,3889.7,2.2252941]
[1734303655418,2.57056,3890.2,3889.8,0.89011764]
[1734303655618,2.57056,3890.2,3889.6,0.7698]
[1734303655942,2.57056,3890.2,3889.7,2.22529305]
[1734303656145,2.57056,3890.2,3889.8,0.89011722]
[1734303656445,2.57056,3890.2,3889.7,0.39668836]
[1734303656652,2.57056,3890.2,3889.8,0.89015478]
[1734303656849,2.57056,3890.2,3889.7,0.39668836]
[1734303657145,2.57056,3890.2,3889.8,0.89015552]
[1734303657342,2.57056,3890.2,3889.7,0.39668836]
[1734303657642,2.57056,3890.2,3889.8,0.89022715]
[1734303657844,2.57056,3890.2,3889.7,0.39668836]
[1734303658018,2.57056,3890.2,3889.8,0.89023018]
[1734303658349,2.57056,3890.2,3889.7,0.39668836]
[1734303661236,1.07913281,3890.8,3889.7,0.39668836]
[1734303661438,2.57059,3890.2,3889.6,0.7698]
[1734303661746,2.57059,3890.2,3889.7,0.89012212]
[1734303661955,2.57059,3890.2,3889.6,0.7698]
[1734303662137,0.55,3890.5,3889.6,0.7698]
[1734303662341,2.57062,3890.1,3889.6,0.7698]
[1734303662811,3.34109,3890.3,3889.6,0.7698]
[1734303663013,2.57056,3890.2,3889.6,0.7698]
[1734303663350,2.57056,3890.2,3889.6,1.00587023]
[1734303663563,2.57062,3890.1,3889.6,1.00587023]
[1734303664830,3.34111,3890.3,3889.6,1.00587023]
[1734303665265,0.7706,3890.3,3889.6,1.00587023]
[1734303665475,2.57055,3890.3,3889.6,1.00587023]
[1734303665794,2.57055,3890.3,3889.7,0.15216669]
[1734303666442,2.57053,3890.3,3889.7,0.15216669]
[1734303667970,2.57056,3890.2,3889.7,0.15216669]
[1734303672588,0.55,3890.5,3889.7,0.15216669]
[1734303672787,2.57052,3890.3,3889.7,0.15216669]
[1734303674401,3.12038,3890.5,3889.7,0.15216669]
[1734303674709,2.57049,3890.3,3889.7,0.15216669]
[1734303676092,0.55,3890.5,3889.7,0.15216669]
[1734303676400,2.57058,3890.2,3889.6,1.00587023]
[1734303677599,2.57043,3890.4,3889.6,1.00587023]
[1734303677803,2.57043,3890.4,3889.7,0.8900573]
[1734303677966,2.5705,3890.3,3889.7,0.34868298]
[1734303679276,2.5705,3890.3,3889.6,0.7698]
[1734303682309,2.5705,3890.3,3889.7,0.89046831]
[1734303682573,2.5705,3890.3,3889.6,0.7698]
[1734303683347,2.5705,3890.3,3889.7,0.89048554]
[1734303683657,2.5705,3890.3,3889.6,0.7698]
[1734303683833,2.5705,3890.3,3889.7,1.12668152]
[1734303684155,2.5705,3890.3,3889.7,0.23607023]
[1734303686246,2.5705,3890.3,3889.8,0.89108586]
[1734303686442,2.5705,3890.3,3889.7,0.23607023]
[1734303686649,2.5705,3890.3,3889.8,0.89108564]
[1734303686840,2.5705,3890.3,3889.7,0.23607023]
[1734303687156,2.5705,3890.3,3889.8,0.89108564]
[1734303687310,2.5705,3890.3,3889.7,0.23607023]
[1734303687506,2.5705,3890.3,3889.8,2.22829783]
[1734303687704,0.55,3890.5,3889.7,0.23607023]
[1734303687705,4.19950281,3890.5,3889.9,0.89131935]
[1734303687927,2.57044,3890.4,3889.7,1.3111758]
[1734303688156,2.57044,3890.4,3889.8,2.22821451]
[1734303688453,2.57044,3890.4,3889.7,1.3111758]
[1734303688454,2.5705,3890.3,3889.9,2.22821451]
[1734303688637,2.5705,3890.3,3890.0,0.8912858]
[1734303688838,2.5705,3890.3,3889.7,1.3111758]
[1734303689027,2.5705,3890.3,3889.8,2.2287364]
[1734303689225,2.5705,3890.3,3889.9,2.2287364]
[1734303689409,2.5705,3890.3,3890.0,0.89149456]
[1734303689609,2.5705,3890.3,3889.8,1.48581113]
[1734303689804,2.5705,3890.3,3889.9,2.2292613]
[1734303690057,2.5705,3890.3,3890.0,0.89170452]
[1734303690264,2.5705,3890.3,3889.8,1.48581113]
[1734303690441,2.5705,3890.3,3889.9,2.22983808]
[1734303690644,2.5705,3890.3,3890.0,0.89193523]
[1734303690895,2.5705,3890.3,3889.8,1.48581113]
[1734303691045,2.5705,3890.3,3889.9,2.22983707]
[1734303691211,3.64963281,3890.3,3890.0,2.23038538]
[1734303691407,3.64963281,3890.3,3890.1,0.89229984]
[1734303691631,3.64963281,3890.3,3889.9,1.07510557]
[1734303691841,3.64963281,3890.3,3890.0,2.23075016]
[1734303692011,3.64963281,3890.3,3890.1,0.89230006]
[1734303692220,3.64963281,3890.3,3889.9,1.07510557]
[1734303692420,3.64963281,3890.3,3890.0,2.23074455]
[1734303692658,3.64963281,3890.3,3890.1,0.89229782]
[1734303692813,3.64963281,3890.3,3889.9,1.07510557]
[1734303693013,3.64963281,3890.3,3890.0,2.23074513]
[1734303693325,3.64963281,3890.3,3890.1,0.89229805]
[1734303693525,3.64963281,3890.3,3889.9,1.07510557]
[1734303693724,3.64963281,3890.3,3890.0,2.23071917]
[1734303693927,2.57056,3890.2,3890.1,0.89228767]
[1734303695251,1.07913281,3890.3,3890.1,0.89228767]
[1734303695421,1.07913281,3890.3,3889.9,1.07510557]
[1734303695751,1.07913281,3890.3,3890.0,2.23066353]
[1734303695926,3.64964281,3890.3,3890.1,0.89226051]
[1734303696131,3.64964281,3890.3,3889.8,1.07510557]
[1734303696307,3.64964281,3890.3,3889.9,2.23070117]
[1734303696512,3.64964281,3890.3,3890.0,2.23070117]
[1734303696744,3.64964281,3890.3,3890.1,0.89228047]
[1734303696950,3.64964281,3890.3,3889.8,1.07510557]
[1734303697157,3.64964281,3890.3,3889.9,2.23070206]
[1734303697312,3.64964281,3890.3,3890.0,2.23070206]
[1734303697517,3.64964281,3890.3,3890.1,0.89228082]
[1734303697715,1.07913281,3890.3,3890.2,0.89226011]
[1734303697940,0.7858,3890.9,3890.3,0.7599]
[1734303698154,2.57,3891.1,3890.3,0.7599]
[1734303698328,2.56982,3891.4,3890.3,0.7599]
[1734303698647,2.5696,3891.7,3890.3,0.7599]
[1734303698847,1.813733,3892.3,3890.4,0.7599]
[1734303698848,2.56963,3891.6,3890.4,0.7599]
[1734303699062,2.11234141,3892.3,3890.6,0.7599]
[1734303699210,2.11234141,3892.3,3890.7,0.333026]
[1734303699211,1.07873576,3891.6,3890.7,0.333026]
[1734303699560,2.09624109,3892.3,3891.4,1.07873576]
[1734303699561,1.07863808,3891.8,3891.4,1.07873576]
[1734303699726,1.21375951,3892.3,3891.3,0.7599]
[1734303699727,1.07863808,3891.9,3891.5,3.30861324]
[1734303699932,1.07863808,3892.0,3891.6,2.22987748]
[1734303700128,2.56931,3892.1,3891.3,0.7599]
[1734303700336,2.56931,3892.1,3891.4,0.89034526]
[1734303700560,1.86443808,3892.3,3891.3,0.7599]
[1734303700770,3.81088498,3892.4,3891.4,2.22586534]
[1734303700910,0.1631169,3892.4,3891.5,4.67416157]
[1734303701113,2.7322269,3892.4,3891.5,1.36956047]
[1734303701314,0.1631169,3892.4,3891.5,1.36956047]
[1734303701512,0.1631169,3892.4,3891.6,2.2233783]
[1734303701756,0.1631169,3892.4,3891.7,2.74108652]
[1734303702054,0.1631169,3892.4,3891.7,0.51772053]
[1734303702490,0.1631169,3892.4,3891.5,1.87509123]
[1734303702626,0.1631169,3892.4,3891.7,0.8192]
[1734303702956,0.1631169,3892.4,3891.9,1.01183268]
[1734303703158,0.1631169,3892.4,3892.0,3.32526]
[1734303703341,0.1631169,3892.4,3892.3,0.7559]
[1734303704573,0.1631169,3892.4,3892.3,1.76773268]
[1734303704716,0.1631169,3892.4,3892.3,2.02207946]
[1734303704918,0.1631169,3892.4,3892.3,1.99639031]
[1734303705327,0.1631169,3892.4,3892.3,2.06209031]
[1734303705528,3.0,3893.6,3892.3,2.06209031]
[1734303705529,2.56839,3893.5,3892.4,0.8216]
[1734303705739,2.56839,3893.5,3892.5,0.5150164]
[1734303706148,2.56846,3893.4,3892.5,0.5150164]
[1734303706354,2.56846,3893.4,3892.4,0.8216]
[1734303707316,2.56846,3893.4,3892.5,1.24]
[1734303707529,0.55,3893.6,3892.6,0.8082]
[1734303708344,2.56845,3893.4,3892.6,0.8082]
[1734303708560,2.56845,3893.4,3892.7,0.20482]
[1734303709256,0.55,3893.6,3892.6,0.8082]
[1734303709459,0.02458287,3893.3,3892.6,0.8082]
[1734303709619,2.56885,3892.8,3892.5,1.24]
[1734303710031,0.02443532,3892.7,3892.5,1.24]
[1734303710335,2.59337532,3892.7,3892.5,1.24]
[1734303715170,2.59337532,3892.7,3892.6,0.7998]
[1734303715462,0.02443532,3892.7,3892.6,0.7998]
[1734303715761,2.56887,3892.8,3892.6,0.7998]
[1734303715968,0.02410585,3892.7,3892.6,0.7998]
[1734303716463,2.56896,3892.7,3892.5,1.24]
[1734303716667,2.56897,3892.6,3892.5,1.24]
[1734303717042,2.593053,3892.6,3892.5,1.24]
[1734303717834,0.024083,3892.6,3892.5,1.24]
[1734303718184,2.56885,3892.8,3892.5,1.24]
[1734303718389,0.024083,3892.6,3892.5,2.0056]
[1734303718528,2.56885,3892.8,3892.5,2.0056]
[1734303718529,0.02330309,3892.7,3892.5,2.0056]
[1734303718734,2.492933,3892.8,3892.5,2.0056]
[1734303718934,0.02330309,3892.7,3892.5,2.0056]
[1734303719128,2.492933,3892.8,3892.5,2.0056]
[1734303719437,0.02330309,3892.7,3892.5,2.0056]
[1734303719762,2.5687,3893.1,3892.5,2.20616]
[1734303720078,0.02486174,3893.0,3892.5,2.20616]
[1734303720277,0.02486174,3893.0,3892.6,0.220616]
[1734303720579,2.59357174,3893.0,3892.6,0.220616]
[1734303723187,2.59357174,3893.0,3892.5,2.0056]
[1734303724182,2.56894,3892.7,3892.5,2.0056]
[1734303724391,2.56897,3892.6,3892.5,1.24]
[1734303724594,3.14797225,3892.6,3892.5,1.24]
[1734303725371,7.55708048,3892.6,3892.5,1.24]
[1734303725601,7.55708048,3892.6,3890.2,0.8173]
[1734303725602,3.55,3892.5,3890.2,0.8173]
[1734303725802,2.5697,3891.5,3890.4,0.8173]
[1734303726005,2.5697,3891.5,3890.5,0.338778]
[1734303726174,0.03092953,3891.4,3890.5,0.338778]
[1734303726504,0.03092953,3891.4,3891.0,0.51643324]
[1734303726675,0.03092953,3891.4,3891.1,0.8173]
[1734303726879,2.56918,3892.3,3891.1,0.95067332]
[1734303727084,0.03089835,3891.3,3891.2,0.84299355]
[1734303727278,0.8077,3893.1,3891.3,0.8173]
[1734303727478,0.8077,3893.1,3891.4,0.8173]
[1734303727805,0.04263514,3893.0,3891.4,0.8173]
[1734303728014,0.04263514,3893.0,3892.1,0.7759]
[1734303728504,2.56856,3893.3,3892.1,3.3452]
[1734303728712,0.02870874,3892.9,3892.1,3.3452]
[1734303728866,2.56856,3893.3,3892.1,3.3452]
[1734303729067,2.56856,3893.3,3892.2,0.33452]
[1734303729294,0.02478741,3893.2,3892.2,0.33452]
[1734303729509,0.02478741,3893.2,3892.4,0.52341901]
[1734303729871,3.8083,3893.4,3892.4,0.52341901]
[1734303730072,0.0232219,3893.1,3892.4,0.52341901]
[1734303730311,0.02492957,3893.3,3892.4,0.94372591]
[1734303730480,3.8083,3893.4,3892.4,0.52341901]
[1734303730481,0.02485613,3893.0,3892.4,0.52341901]
[1734303730683,3.8083,3893.4,3892.4,0.52341901]